bitfinex/quotes_SOLUSD_20260113
["timestamp","ask_amount","ask_price","bid_price","bid_amount"]
[1768301771979,0.71158099,142.14,142.1,22.58232901]
[1768301772179,0.71158099,142.14,142.1,9.74232901]
[1768301772478,0.71158099,142.14,142.1,22.58232901]
[1768301772684,0.71158099,142.14,142.1,9.74232901]
[1768301772983,0.71158099,142.14,142.1,22.58232901]
[1768301773385,0.71158099,142.14,142.1,9.07158441]
[1768301773584,0.71158099,142.14,142.1,21.91158441]
[1768301773883,0.71158099,142.14,142.1,22.58232901]
[1768301775580,0.71158099,142.14,142.11,7.72782438]
[1768301775889,0.69019911,142.15,142.11,9.07107479]
[1768301777382,0.69019911,142.15,142.12,2.03446805]
[1768301777586,0.36636673,142.15,142.12,2.03446805]
[1768301778761,0.36636673,142.15,142.11,7.03660674]
[1768301778964,0.36636673,142.15,142.12,2.03446805]
[1768301779365,0.36636673,142.15,142.12,3.16923566]
[1768301779562,0.36636673,142.15,142.12,3.86873843]
[1768301779879,7.72455428,142.16,142.13,0.69950277]
[1768301780063,7.72455428,142.16,142.12,3.86873843]
[1768301780463,7.72455428,142.16,142.12,10.90500246]
[1768301780891,7.72455428,142.16,142.13,3.16923566]
[1768301781889,0.69019911,142.16,142.13,3.16923566]
[1768301782263,0.69019911,142.15,142.08,18.29445788]
[1768301782465,3.85943477,142.09,142.05,7.73900053]
[1768301782669,3.38982759,142.08,142.04,7.73953721]
[1768301782972,3.16923566,142.08,142.04,7.73953721]
[1768301783388,3.16923566,142.08,142.05,7.03963177]
[1768301783984,3.16923566,142.08,142.05,7.73913454]
[1768301784189,3.16923566,142.09,142.06,7.03920866]
[1768301784894,3.85943477,142.09,142.06,7.03920866]
[1768301785391,0.69019911,142.09,142.06,7.03920866]
[1768301785586,3.85943477,142.09,142.06,7.03920866]
[1768301789706,0.69019911,142.09,142.06,7.03920866]
[1768301790579,0.69019911,142.09,142.06,7.73871143]
[1768301791003,3.85943477,142.1,142.06,10.90794709]
[1768301791192,10.89586036,142.12,142.08,0.69950277]
[1768301792688,7.7266247,142.12,142.08,3.86873843]
[1768301792888,10.89586036,142.12,142.08,3.86873843]
[1768301793089,10.89586036,142.12,142.08,10.90694019]
[1768301793696,7.7266247,142.12,142.08,10.90694019]
[1768301793891,10.89586036,142.12,142.08,10.90694019]
[1768301799612,0.65999408,142.11,142.08,7.73770453]
[1768301800117,0.65999408,142.11,142.08,10.90694019]
[1768301800809,0.65999408,142.11,142.08,0.69950277]
[1768301801196,0.65999408,142.11,142.08,7.73773793]
[1768301801917,3.82922974,142.11,142.08,0.69950277]
[1768301804605,3.82922974,142.11,142.08,7.73767274]
[1768301804911,0.65999408,142.11,142.08,10.9069084]
[1768301805913,0.65999408,142.12,142.09,7.75934272]
[1768301807613,0.65999408,142.11,142.07,0.72164678]
[1768301807915,3.82922974,142.1,142.07,7.76012532]
[1768301809004,0.65999408,142.09,142.06,7.76079589]
[1768301809195,0.65999408,142.09,142.06,0.72164678]
[1768301809597,0.65999408,142.09,142.07,7.03872734]
[1768301810304,3.82922974,142.11,142.07,10.92960978]
[1768301811518,0.65999408,142.11,142.08,0.72164678]
[1768301812205,10.20576506,142.12,142.08,10.92881047]
[1768301812206,3.82922974,142.12,142.08,10.92881047]
[1768301812406,106.56923566,142.16,142.11,0.72164678]
[1768301812407,10.86466469,142.14,142.11,0.72164678]
[1768301812610,10.86466469,142.14,142.1,3.16923566]
[1768301812611,10.86466469,142.14,142.1,0.72164678]
[1768301812802,0.65999408,142.13,142.1,0.72164678]
[1768301813392,3.82922974,142.13,142.1,0.72164678]
[1768301815998,0.65999408,142.13,142.1,0.72164678]
[1768301817122,3.82922974,142.13,142.1,0.72164678]
[1768301817626,0.65999408,142.13,142.1,0.72164678]
[1768301818330,0.65999408,142.13,142.1,7.75875795]
[1768301818625,0.65999408,142.13,142.1,10.92799361]
[1768301818837,0.65999408,142.13,142.1,7.75875795]
[1768301818995,0.65999408,142.13,142.1,10.92799361]
[1768301820620,0.65999408,142.16,142.13,0.72164678]
[1768301821026,3.82922974,142.16,142.13,0.72164678]
[1768301821331,0.65999408,142.15,142.12,3.89088244]
[1768301822313,7.03440671,142.16,142.12,10.92716764]
[1768301822520,0.1,142.17,142.15,3.16923566]
[1768301822713,0.1,142.17,142.16,3.16923566]
[1768301823232,0.1,142.17,142.15,3.89088244]
[1768301823917,0.75999408,142.17,142.16,3.16923566]
[1768301824425,0.75999408,142.22,142.17,0.72164678]
[1768301824733,16.00094613,142.21,142.19,3.16923566]
[1768301825213,15.3090078,142.21,142.19,3.85302858]
[1768301826305,15.3090078,142.21,142.2,3.16923566]
[1768301827613,15.3090078,142.21,142.19,3.85302858]
[1768301829110,15.3090078,142.21,142.2,3.16923566]
[1768301829311,15.3090078,142.21,142.19,0.68379292]
[1768301829510,15.3090078,142.21,142.19,3.85302858]
[1768301830116,22.3409462,142.21,142.19,0.68379292]
[1768301830315,23.03288453,142.21,142.18,3.16923566]
[1768301830837,23.03288453,142.21,142.18,3.85302858]
[1768301831631,0.69193833,142.2,142.18,3.16923566]
[1768301831805,0.69193833,142.2,142.17,3.85302858]
[1768301832417,0.69193833,142.2,142.17,0.68379292]
[1768301833017,0.69193833,142.2,142.17,10.8868317]
[1768301834445,16.00094613,142.21,142.18,0.68379292]
[1768301837442,16.00533846,142.21,142.18,0.68379292]
[1768301837632,16.00533846,142.21,142.17,10.20303878]
[1768301837633,0.69633066,142.2,142.17,7.75668647]
[1768301838032,19.17457412,142.21,142.17,7.75668647]
[1768301838231,26.20645539,142.21,142.17,7.75668647]
[1768301838421,19.17457412,142.21,142.17,7.75668647]
[1768301839742,16.00533846,142.21,142.17,7.75668647]
[1768301844042,16.00533846,142.21,142.17,9.78369847]
[1768301845440,16.00533846,142.21,142.18,0.72288335]
[1768301845643,0.69633066,142.2,142.18,7.03323251]
[1768301847343,0.69633066,142.2,142.14,62.12288335]
[1768301847547,0.69633066,142.17,142.15,7.0345871]
[1768301847844,2.72334266,142.18,142.15,7.75747045]
[1768301848042,2.72334266,142.16,142.12,0.72288335]
[1768301848244,0.47706875,142.15,142.11,0.72288335]
[1768301848448,2.027012,142.13,142.1,7.0370591]
[1768301848652,2.027012,142.11,142.07,0.72288335]
[1768301848851,2.027012,142.09,142.07,0.72288335]
[1768301850349,7.03736667,142.1,142.07,0.72288335]
[1768301850554,2.027012,142.1,142.07,0.72288335]
[1768301850849,1.96701195,142.1,142.07,0.72288335]
[1768301854552,2.027012,142.09,142.07,0.72288335]
[1768301857139,2.027012,142.08,142.07,0.72288335]
[1768301859455,2.027012,142.08,142.06,0.69014286]
[1768301861964,7.63929474,142.1,142.06,0.69014286]
[1768301862142,9.06439399,142.1,142.07,0.69014286]
[1768301862343,2.027012,142.1,142.07,0.69014286]
[1768301865146,9.06433909,142.1,142.07,0.69014286]
[1768301867956,2.71339385,142.08,142.05,0.69014286]
[1768301868157,2.71256606,142.06,142.03,69.13041411]
[1768301868349,2.71256606,142.06,142.03,7.73041411]
[1768301868551,2.027012,142.06,142.04,0.69014286]
[1768301869666,2.027012,142.06,142.04,7.73028737]
[1768301870744,2.027012,142.07,142.05,0.69014286]
[1768301872372,1.967012,142.07,142.05,0.69014286]
[1768301872558,2.56892475,142.07,142.04,7.73028737]
[1768301873368,0.60191275,142.07,142.04,7.73028737]
[1768301875559,2.027012,142.08,142.05,0.69014286]
[1768301875761,2.027012,142.06,142.03,7.73078799]
[1768301876055,2.027012,142.06,142.03,0.69014286]
[1768301876256,2.027012,142.06,142.03,7.73085193]
[1768301878771,2.62977789,142.06,142.03,7.73085193]
[1768301881572,2.027012,142.06,142.04,0.69014286]
[1768301881764,1.967012,142.06,142.04,0.69014286]
[1768301882761,2.027012,142.07,142.05,0.69014286]
[1768301883066,9.06552832,142.08,142.05,0.69014286]
[1768301883267,9.66744107,142.08,142.05,0.69014286]
[1768301884988,0.69905107,142.09,142.06,0.69554642]
[1768301885176,2.72606307,142.1,142.06,0.69554642]
[1768301885374,0.59105952,142.09,142.06,0.69554642]
[1768301886083,0.59105952,142.09,142.06,7.73464584]
[1768301887282,0.59105952,142.09,142.06,9.76165784]
[1768301887971,7.03751883,142.1,142.06,9.76165784]
[1768301887972,7.03751883,142.1,142.07,0.69554642]
[1768301888288,7.62857835,142.1,142.07,0.69554642]
[1768301888762,7.73624397,142.11,142.08,0.69554642]
[1768301889087,0.59212864,142.08,142.03,7.73619455]
[1768301889283,2.027012,142.06,142.03,7.73619455]
[1768301889484,2.027012,142.06,142.04,0.69554642]
[1768301891087,2.72392472,142.07,142.04,0.69554642]
[1768301891465,0.69691272,142.07,142.04,0.69554642]
[1768301891666,2.72392472,142.07,142.04,0.69554642]
[1768301893287,2.027012,142.09,142.05,0.69554642]
[1768301893782,2.72606307,142.09,142.05,0.69554642]
[1768301893983,2.027012,142.08,142.05,0.69554642]
[1768301899393,9.65648608,142.08,142.05,0.69554642]
[1768301899580,7.62947408,142.08,142.05,0.69554642]
[1768301899780,9.65648608,142.08,142.05,0.69554642]
[1768301900489,0.69797115,142.07,142.04,0.72485345]
[1768301901300,10.91252636,142.08,142.04,0.72485345]
[1768301902092,10.91252636,142.08,142.05,0.72485345]
[1768301904701,7.73921223,142.08,142.05,0.72485345]
[1768301904995,10.91252636,142.08,142.05,0.72485345]
[1768301907399,10.85252635,142.08,142.05,0.72485345]
[1768301909399,7.67921222,142.08,142.05,0.72485345]
[1768301909601,10.85252635,142.08,142.05,0.72485345]
[1768301911301,0.58933038,142.07,142.03,10.93873679]
[1768301911495,0.699683,142.06,142.03,7.76542266]
[1768301911798,3.76264451,142.07,142.04,0.72485345]
[1768301911999,3.17331413,142.05,142.03,0.72485345]
[1768301912202,3.12750853,142.04,142.0,10.71493365]
[1768301912399,3.12750853,142.04,142.0,7.76683651]
[1768301912783,3.8283062,142.04,142.0,7.76683651]
[1768301912984,3.8283062,142.04,141.99,3.17331413]
[1768301912985,0.39133038,142.03,141.99,10.94067322]
[1768301913180,0.33133039,142.03,142.0,7.7670794]
[1768301913384,0.33133039,142.03,142.0,7.7212738]
[1768301913695,10.86881905,142.04,142.0,7.7212738]
[1768301913911,10.86881905,142.04,142.0,7.04222595]
[1768301914495,10.83881905,142.04,142.0,7.04222595]
[1768301915309,10.83881905,142.04,142.01,0.67653668]
[1768301915998,3.17331413,142.03,142.01,0.67653668]
[1768301916697,10.91456512,142.04,142.01,0.67653668]
[1768301916901,7.04045332,142.04,142.01,0.67653668]
[1768301917096,10.2132412,142.05,142.02,0.67653668]
[1768301917399,10.59257589,142.05,142.02,0.67653668]
[1768301918285,0.69552629,142.04,142.01,7.71812978]
[1768301918605,10.91196134,142.05,142.02,0.67653668]
[1768301920205,7.73864721,142.05,142.02,0.67653668]
[1768301921890,10.91196134,142.05,142.02,0.67653668]
[1768301922806,10.91196134,142.05,142.01,7.71812978]
[1768301925009,7.73864721,142.05,142.01,7.71812978]
[1768301925914,7.03992707,142.05,142.02,0.67653668]
[1768301926309,7.41926176,142.05,142.02,0.67653668]
[1768301930709,7.03948775,142.06,142.03,0.67653668]
[1768301930892,7.41882244,142.06,142.03,0.67653668]
[1768301931720,0.69552629,142.05,142.02,10.89106091]
[1768301932216,7.73820789,142.06,142.02,10.89106091]
[1768301933111,0.37933469,142.05,142.02,10.89106091]
[1768301933416,13.53872014,142.07,142.04,0.67653668]
[1768301933617,13.53872014,142.07,142.01,0.67653668]
[1768301933618,0.3824966,142.04,142.01,0.67653668]
[1768301933788,3.12752247,142.04,142.0,62.07653668]
[1768301934117,3.17331413,142.03,142.0,0.67653668]
[1768301934507,3.17331413,142.03,142.0,7.71838476]
[1768301935605,3.11331471,142.03,142.0,7.71838476]
[1768301936815,3.21231471,142.03,142.0,7.71838476]
[1768301937232,0.594386,142.02,141.99,7.71925615]
[1768301937402,3.76770013,142.02,141.99,7.71925615]
[1768301941312,3.77270403,142.03,141.99,7.71925615]
[1768301941522,0.5993899,142.03,141.99,7.71925615]
[1768301941718,3.77270403,142.03,141.99,7.71925615]
[1768301944723,0.5993899,142.03,141.99,7.71925615]
[1768301945031,3.77270403,142.03,142.0,0.69081603]
[1768301947823,3.77270403,142.03,142.0,7.73302032]
[1768301949835,3.71270403,142.03,142.0,7.73302032]
[1768301950231,7.03991424,142.05,142.01,3.86413016]
[1768301950526,10.21278062,142.06,142.02,0.69081603]
[1768301951515,7.03946649,142.06,142.02,0.69081603]
[1768301951915,0.5393899,142.05,142.02,3.86413016]
[1768301953341,0.5393899,142.05,142.02,0.69081603]
[1768301953515,7.57918609,142.05,142.02,0.69081603]
[1768301953710,0.5393899,142.05,142.02,7.73193797]
[1768301954531,7.57885759,142.06,142.03,0.69081603]
[1768301957214,10.75217172,142.06,142.03,0.69081603]
[1768301958242,7.57885759,142.06,142.03,0.69081603]
[1768301958447,10.75217172,142.06,142.03,0.69081603]
[1768301960841,7.57885759,142.06,142.03,0.69081603]
[1768301961046,10.75217172,142.06,142.03,0.69081603]
[1768301961236,7.57885759,142.06,142.03,0.69081603]
[1768301961432,0.099,142.05,142.02,0.67803259]
[1768301961626,10.31178182,142.06,142.02,0.67803259]
[1768301963444,9.16997945,142.06,142.02,0.67803259]
[1768301963647,2.56649776,142.05,142.02,0.67803259]
[1768301963848,2.03151176,142.03,142.01,0.67803259]
[1768301964317,2.13487162,142.04,142.01,0.67803259]
[1768301965634,7.03949346,142.06,142.03,0.67803259]
[1768301967641,9.07100522,142.06,142.03,0.67803259]
[1768301968044,2.56649776,142.05,142.01,0.67803259]
[1768301968347,2.03151176,142.03,142.0,0.67803259]
[1768301969047,2.13487162,142.04,142.0,0.67803259]
[1768301969246,9.17553769,142.04,142.0,0.67803259]
[1768301970352,9.17553769,142.04,142.0,7.72026404]
[1768301971146,9.17553769,142.04,142.01,0.67803259]
[1768301971451,9.07217783,142.04,142.01,0.67803259]
[1768301979941,2.03151176,142.04,142.01,7.71978928]
[1768301982156,2.13051176,142.04,142.01,7.71978928]
[1768301991151,0.099,142.04,142.01,7.71978928]
[1768301991552,22.47091705,142.05,142.02,0.69016599]
[1768301996678,0.099,142.04,142.01,7.73192268]
[1768301998270,2.13051176,142.04,142.01,7.73192268]
[1768301998478,2.13051176,142.04,142.01,0.69016599]
[1768302000587,2.13051176,142.04,142.01,7.73190349]
[1768302004080,0.099,142.04,142.01,7.73190349]
[1768302004254,2.13051176,142.04,142.01,7.73190349]
[1768302004755,2.03151176,142.04,142.02,0.65405276]
[1768302006680,2.13051176,142.04,142.01,0.65405276]
[1768302008069,9.17089977,142.04,142.01,0.65405276]
[1768302008267,7.83544053,142.03,142.01,0.65405276]
[1768302008565,2.56649776,142.03,142.01,0.65405276]
[1768302011583,2.03151176,142.03,142.01,0.65405276]
[1768302011981,9.61128967,142.04,142.01,0.65405276]
[1768302012175,21.9314976,142.05,142.02,0.65405276]
[1768302012668,22.0304976,142.05,142.02,0.65405276]
[1768302016391,21.9314976,142.05,142.02,0.65405276]
[1768302017085,2.57090166,142.07,142.03,0.65539379]
[1768302017295,5.81064899,142.06,142.03,0.65539379]
[1768302017472,2.03151176,142.07,142.03,0.65539379]
[1768302017791,7.30265087,142.06,142.03,0.65539379]
[1768302017993,2.13051176,142.06,142.03,0.65539379]
[1768302019991,9.16979766,142.06,142.03,0.65539379]
[1768302020291,7.1382859,142.06,142.03,0.65539379]
[1768302020479,0.5393899,142.09,142.06,0.65539379]
[1768302020677,2.13051176,142.08,142.05,0.65539379]
[1768302022370,2.13487162,142.06,142.03,7.695949]
[1768302023070,2.03151176,142.05,142.03,0.65539379]
[1768302023391,2.13487162,142.06,142.03,0.65539379]
[1768302024967,0.10763296,142.04,142.01,0.65539379]
[1768302025171,2.13914472,142.04,142.01,0.65539379]
[1768302025360,3.2826934,142.04,142.01,0.65539379]
[1768302025566,3.2826934,142.04,142.01,7.69712193]
[1768302027069,0.10763296,142.04,142.01,7.69712193]
[1768302030096,3.71445034,142.05,142.02,0.65539379]
[1768302030309,0.5393899,142.05,142.02,0.65539379]
[1768302030895,3.71445034,142.06,142.03,0.65539379]
[1768302036581,0.5393899,142.06,142.03,0.65539379]
[1768302036781,10.7537722,142.06,142.03,0.65539379]
[1768302037805,0.5393899,142.06,142.03,0.65539379]
[1768302037983,3.71445034,142.06,142.03,7.69614395]
[1768302039604,0.5393899,142.06,142.03,7.69614395]
[1768302039991,3.71445034,142.06,142.03,7.69614395]
[1768302040382,0.5393899,142.06,142.03,7.69614395]
[1768302040598,0.5393899,142.07,142.04,0.7164551]
[1768302040809,0.099,142.06,142.03,7.75720526]
[1768302041704,3.27406044,142.06,142.03,7.75720526]
[1768302042308,0.099,142.06,142.03,0.7164551]
[1768302042501,3.27406044,142.06,142.03,7.75716655]
[1768302042701,0.534986,142.05,142.03,7.04071145]
[1768302046196,3.71445034,142.06,142.03,0.7164551]
[1768302047897,3.71445034,142.06,142.03,7.75716088]
[1768302049216,0.5393899,142.06,142.03,7.75716088]
[1768302049409,3.71445034,142.06,142.03,7.75716088]
[1768302049595,0.099,142.05,142.02,7.75771689]
[1768302049894,3.17506044,142.06,142.02,7.75771689]
[1768302050207,3.17506044,142.06,141.98,0.7164551]
[1768302050208,3.17506044,142.03,141.98,0.7164551]
[1768302050409,3.17506044,142.05,142.0,0.7164551]
[1768302050619,16.01506044,142.05,142.0,0.7164551]
[1768302050789,3.17506044,142.04,142.0,7.75852916]
[1768302051702,3.61545034,142.04,142.0,7.75852916]
[1768302052614,3.61545034,142.04,142.01,0.7164551]
[1768302052615,0.4403899,142.04,142.01,0.7164551]
[1768302053008,3.61545034,142.04,142.01,7.7581354]
[1768302053221,0.4403899,142.04,142.01,7.7581354]
[1768302053410,3.61545034,142.04,142.01,7.7581354]
[1768302054414,0.4403899,142.04,142.01,0.7164551]
[1768302054603,10.65582188,142.04,142.01,0.7164551]
[1768302055621,17.60641301,142.08,142.03,0.7164551]
[1768302055827,0.436976,142.07,142.03,3.89151554]
[1768302056022,0.436976,142.07,142.03,0.7164551]
[1768302056212,0.10569227,142.04,142.01,0.7164551]
[1768302056720,3.17506044,142.05,142.01,0.7164551]
[1768302056721,0.4403899,142.05,142.01,0.7164551]
[1768302056924,0.4403899,142.05,142.01,3.89151554]
[1768302057306,7.04027034,142.04,142.01,0.7164551]
[1768302060814,0.099,142.04,142.01,0.7164551]
[1768302061223,0.03900129,142.04,142.01,0.7164551]
[1768302061920,3.17506044,142.05,142.01,0.7164551]
[1768302062104,3.17506044,142.03,141.99,0.7164551]
[1768302062305,3.17506044,142.02,141.98,0.7164551]
[1768302062610,16.03506044,142.01,141.96,3.89151554]
[1768302062809,16.03506044,142.01,141.96,0.7164551]
[1768302062810,7.04225352,142.0,141.96,0.7164551]
[1768302063034,10.21731396,142.0,141.96,0.7164551]
[1768302063210,19.90195152,142.01,141.96,10.93567806]
[1768302063414,19.90195152,142.01,141.97,0.7164551]
[1768302063729,12.86,142.01,141.98,0.7164551]
[1768302064224,12.959,142.01,141.98,0.7164551]
[1768302067307,10.21652439,142.02,141.99,0.65358508]
[1768302067514,7.04146395,142.02,141.99,0.65358508]
[1768302067921,3.51645034,142.05,142.01,0.65358508]
[1768302069337,7.04043392,142.04,142.01,0.65358508]
[1768302069524,7.03978468,142.05,142.01,0.65358508]
[1768302069922,10.21484512,142.05,142.01,0.65358508]
[1768302074537,10.31384512,142.05,142.01,0.65358508]
[1768302074840,10.21484512,142.05,142.01,0.65358508]
[1768302075013,7.03978468,142.05,142.01,0.65358508]
[1768302075212,10.21484512,142.05,142.01,0.65358508]
[1768302075936,3.17506044,142.04,142.01,0.65358508]
[1768302077135,7.04076603,142.03,142.01,0.65358508]
[1768302077433,3.17506044,142.02,142.0,0.65698936]
[1768302078215,7.37735636,142.03,142.0,0.65698936]
[1768302078521,3.17506044,142.02,142.0,0.65698936]
[1768302079840,3.17506044,142.01,141.98,0.65698936]
[1768302082044,7.0414939,142.02,141.98,0.65698936]
[1768302082237,3.17506044,142.01,141.98,0.65698936]
[1768302083018,10.21713499,142.01,141.98,0.65698936]
[1768302085348,9.07509697,142.01,141.98,0.65698936]
[1768302087065,7.04207455,142.01,141.98,0.65698936]
[1768302087861,7.01207455,142.01,141.99,0.65698936]
[1768302088029,6.98207455,142.01,141.99,0.65698936]
[1768302088531,9.01509697,142.01,141.99,0.65698936]
[1768302088960,7.04150825,142.02,141.99,0.65698936]
[1768302089258,2.03302242,142.04,142.0,0.65698936]
[1768302089829,9.07300897,142.05,142.0,0.65698936]
[1768302090145,9.07300897,142.05,142.01,0.65698936]
[1768302092066,7.03998655,142.05,142.01,0.65698936]
[1768302092245,9.07300897,142.05,142.02,0.65698936]
[1768302093139,7.03998655,142.05,142.02,0.65698936]
[1768302094434,9.07300897,142.05,142.02,0.65698936]
[1768302095051,2.03302242,142.05,142.02,0.65698936]
[1768302095961,9.07301879,142.05,142.02,0.65698936]
[1768302099148,9.41198479,142.05,142.02,0.65698936]
[1768302099739,9.07301879,142.05,142.02,0.65698936]
[1768302101156,9.17201879,142.05,142.02,0.65698936]
[1768302102065,7.13899637,142.05,142.02,0.65698936]
[1768302102249,9.17201879,142.05,142.02,0.65698936]
[1768302102578,0.33659033,142.02,141.98,0.68504083]
[1768302102738,2.03302242,142.0,141.98,0.68504083]
[1768302103768,0.3413899,141.98,141.92,0.2]
[1768302103948,5.26325796,141.97,141.92,12.79487471]
[1768302104263,7.14018438,142.05,141.97,0.68504083]
[1768302104460,9.1732068,142.05,141.99,2.03302242]
[1768302104666,2.03302242,142.04,141.97,2.03302242]
[1768302104868,2.03302242,142.03,141.96,6.99678342]
[1768302105240,2.03302242,142.03,141.97,7.04374163]
[1768302105855,2.03302242,142.03,141.97,24.65309571]
[1768302106360,2.03302242,142.03,141.98,0.68504083]
[1768302107348,9.07374604,142.04,142.0,0.68504083]
[1768302109965,2.03302242,142.03,142.0,0.68504083]
[1768302110669,9.07374604,142.04,142.0,0.68504083]
[1768302112865,7.04072362,142.04,142.0,0.68504083]
[1768302113073,9.07374604,142.04,142.0,0.68504083]
[1768302115650,7.04072362,142.04,142.0,0.68504083]
[1768302115866,7.03994416,142.05,142.01,0.68504083]
[1768302116063,7.03945886,142.06,142.02,0.68504083]
[1768302116262,7.03945886,142.06,142.02,0.62504085]
[1768302116584,7.03945886,142.06,142.02,0.57931527]
[1768302117871,7.03945886,142.06,142.02,2.03302242]
[1768302118372,7.03945886,142.06,142.02,0.68504083]
[1768302118959,7.03945886,142.06,142.03,0.68504083]
[1768302120071,9.07248128,142.06,142.03,0.68504083]
[1768302120272,2.03302242,142.05,142.02,0.68504083]
[1768302120475,2.13765803,142.05,142.02,0.68504083]
[1768302122465,2.03302242,142.05,142.02,0.68504083]
[1768302122871,9.07285183,142.05,142.02,0.68504083]
[1768302123769,2.03302242,142.03,142.01,0.68504083]
[1768302123973,2.03302242,142.02,142.01,0.68504083]
[1768302124168,2.03302242,142.03,142.01,0.68504083]
[1768302124360,9.07394428,142.03,142.01,0.68504083]
[1768302125379,7.04092186,142.03,142.01,0.68504083]
[1768302128284,0.65398455,142.01,141.96,7.04421919]
[1768302128688,2.68700697,142.01,141.96,7.04421919]
[1768302128988,7.04225352,142.0,141.96,7.04421919]
[1768302129480,9.07527594,142.0,141.96,7.04421919]
[1768302130369,9.07527594,142.0,141.97,0.68471689]
[1768302131082,2.68700697,141.99,141.96,0.68471689]
[1768302131385,2.03302242,141.98,141.94,0.68471689]
[1768302132460,2.03302242,141.98,141.95,0.68471689]
[1768302132665,2.68700697,141.98,141.95,0.68471689]
[1768302133585,9.73030452,141.98,141.95,0.68471689]
[1768302135180,9.70030452,141.98,141.95,0.68471689]
[1768302136267,9.07631997,141.98,141.95,0.68471689]
[1768302137987,0.68863855,141.97,141.94,7.04512872]
[1768302138162,9.07631997,141.98,141.95,0.65357728]
[1768302138359,4.06604484,141.96,141.9,3.87255518]
[1768302138588,2.03302242,141.91,141.89,0.2]
[1768302139075,2.03302242,141.9,141.89,0.2]
[1768302139262,2.03302242,141.91,141.89,0.2]
[1768302139464,9.07974437,141.91,141.89,0.2]
[1768302139881,2.03302242,141.9,141.89,1e-08]
[1768302140194,2.03302242,141.9,141.87,0.65357728]
[1768302140486,2.03302242,141.89,141.87,0.65357728]
[1768302140683,2.72166097,141.9,141.87,0.65357728]
[1768302141365,0.68863855,141.9,141.87,0.65357728]
[1768302141565,7.73590442,141.9,141.87,0.65357728]
[1768302143384,0.68863855,141.9,141.87,0.65357728]
[1768302143684,2.72166097,141.9,141.87,0.65357728]
[1768302144469,0.68863855,141.9,141.87,0.65357728]
[1768302145782,9.07993096,141.91,141.88,0.65357728]
[1768302145996,2.72166097,141.95,141.91,0.65357728]
[1768302146178,0.68863855,141.95,141.92,0.65357728]
[1768302146492,9.76609005,141.96,141.92,0.65357728]
[1768302147064,0.68863855,141.96,141.92,0.65357728]
[1768302147372,0.68863855,141.96,141.92,3.83179316]
[1768302147889,0.68863855,141.96,141.92,10.87782556]
[1768302148193,7.7329484,141.96,141.92,10.87782556]
[1768302149886,0.68863855,141.96,141.93,0.65357728]
[1768302157195,7.74225911,141.97,141.94,0.71395445]
[1768302157396,7.74225911,141.97,141.94,3.17821588]
[1768302157397,0.69839211,141.97,141.94,3.17821588]
[1768302158171,0.69839211,141.97,141.94,10.22320172]
[1768302159400,0.69839211,141.97,141.95,3.17821588]
[1768302159898,0.69839211,141.97,141.94,7.04498584]
[1768302160201,0.69839211,141.97,141.95,3.17821588]
[1768302161289,0.69839211,141.97,141.88,18.33380531]
[1768302161290,0.099,141.95,141.88,18.33380531]
[1768302161491,3.17821588,141.95,141.9,10.93905614]
[1768302161680,3.17821588,141.95,141.91,0.71395445]
[1768302161880,24.65326083,141.97,141.91,0.71395445]
[1768302162201,3.17821588,141.95,141.91,0.71395445]
[1768302162375,3.17821588,141.94,141.9,0.71395445]
[1768302162574,3.17821588,141.93,141.9,0.71395445]
[1768302162801,3.14821588,141.93,141.9,0.71395445]
[1768302163998,3.17821588,141.91,141.88,0.71395445]
[1768302165200,3.28506477,141.9,141.86,0.91395445]
[1768302165384,3.11821589,141.89,141.86,0.91395445]
[1768302165585,0.48761778,141.89,141.86,0.2]
[1768302165894,3.17821588,141.88,141.86,0.2]
[1768302166083,0.08803286,141.89,141.86,0.2]
[1768302166289,3.26624874,141.89,141.86,0.2]
[1768302167001,10.3140993,141.89,141.86,0.2]
[1768302167202,7.13588342,141.89,141.86,0.2]
[1768302167579,19.99588342,141.89,141.86,0.2]
[1768302167814,3.17821588,141.88,141.86,0.2]
[1768302167975,19.99588342,141.89,141.86,0.2]
[1768302168175,10.32629899,141.88,141.86,0.10019281]
[1768302168480,7.14808311,141.88,141.86,0.10019281]
[1768302168801,3.17821588,141.87,141.85,0.2]
[1768302169001,3.17821588,141.86,141.85,0.2]
[1768302169180,10.2264918,141.88,141.85,0.2]
[1768302170205,10.2264918,141.88,141.85,0.91395445]
[1768302170514,3.17821588,141.89,141.85,0.91395445]
[1768302170683,3.17821588,141.89,141.86,0.71395445]
[1768302170684,12.86,141.89,141.86,0.71395445]
[1768302172491,23.08636063,141.89,141.85,0.2]
[1768302172783,3.17821588,141.88,141.85,0.2]
[1768302173291,40.70564317,141.89,141.85,0.91395445]
[1768302174703,19.90814475,141.89,141.85,7.96361535]
[1768302174901,19.90814475,141.89,141.86,0.71395445]
[1768302175099,12.86,141.89,141.86,0.71395445]
[1768302175305,12.86,141.89,141.87,0.71395445]
[1768302184208,20.7947802,141.92,141.87,0.71395445]
[1768302184209,12.86,141.92,141.88,0.71395445]
[1768302184389,40.70016816,141.92,141.88,0.71395445]
[1768302184593,23.0846101,141.92,141.88,0.71395445]